Workbook

Sheet 3月
A1: 城市居民最低生活保障工作情况统计表(二）
A2: 填报单位：鼓楼区民政局 （2026年3月）
A3: 区县 | C3: 城市低保 总人数 | D3: 按家庭成员身份分类 | M3: 就业年龄段重残、重病丧劳人员 | N3: 就业年龄段内有劳动能力但尚未正式就业的人员分类 | W3: 对特殊困难对象的特殊照顾
D4: 在职人员 | E4: 离岗 人员 | F4: 离退休 人员 | G4: 在领失业救济金人员 | H4: 失业人员 | I4: 无业人员 | J4: 学生 | K4: 三无 人员 | L4: 其他 人员 | N4: 合计 | O4: 灵活就业 人员 | P4: 不充分就业人员 | Q4: 刑释解教人员 | R4: 有孩子、病人需照顾人员 | S4: 年龄偏大、文化低人员 | T4: 一般残疾、身体状况较差人员 | U4: 无合适岗位人员 | V4: 其他人员 | W4: 增发10%人员 | Z4: 增发20%人员 | AB4: 享受100%重残人员 | AC4: 享受100%三级精智残人员 | AD4: 享受130%人员 | AG4: 2倍单独进线人员（享受100%） | AK4: 成年无业重残单人户 （享受60%）
W5: 总数 | X5: 其中 | Z5: 总数 | AA5: 其中 | AD5: 总数 | AE5: 其中 | AG5: 总数 | AH5: 其中
X6: 退役军人 | Y6: 60-79岁老人 | AA6: 80岁以上老人 | AE6: 三无 | AF6: 一类病 | AH6: 重残疾人员 | AI6: 智力、精神（三级） | AJ6: 一类病
C7: 人 | D7: 人 | E7: 人 | F7: 人 | G7: 人 | H7: 人 | I7: 人 | J7: 人 | K7: 人 | L7: 人 | M7: 人 | N7: 人 | O7: 人 | P7: 人 | Q7: 人 | R7: 人 | S7: 人 | T7: 人 | U7: 人 | V7: 人 | W7: 人 | X7: 人 | Y7: 人 | Z7: 人 | AA7: 人 | AB7: 人 | AC7: 人 | AD7: 人 | AE7: 人 | AF7: 人 | AG7: 人 | AH7: 人 | AI7: 人 | AJ7: 人 | AK7: 人
A8: 1 | C8: 2=3到 11的和 | D8: 3 | E8: 4 | F8: 5 | G8: 6 | H8: 7 | I8: 8 | J8: 9 | K8: 10 | L8: 11 | M8: 12 | N8: 13=14到21的和 | O8: 14 | P8: 15 | Q8: 16 | R8: 17 | S8: 18 | T8: 19 | U8: 20 | V8: 21 | W8: 22 | X8: 23 | Y8: 24 | Z8: 25 | AA8: 26 | AB8: 27 | AC8: 28 | AD8: 29 | AE8: 30 | AF8: 31 | AG8: 32 | AH8: 33 | AI8: 34 | AJ8: 35 | AK8: 36
A9: 1 | B9: 华侨路 | C9: 162 | D9: 3 | E9: 0 | F9: 4 | G9: 0 | H9: 5 | I9: 85 | J9: 23 | K9: 0 | L9: 42 | M9: 39 | N9: 51 | O9: 2 | P9: 2 | Q9: 32 | R9: 1 | S9: 0 | T9: 11 | U9: 0 | V9: 3 | W9: 69 | X9: 1 | Y9: 18 | Z9: 12 | AA9: 3 | AB9: 17 | AC9: 2 | AD9: 10 | AE9: 0 | AF9: 10 | AG9: 15 | AH9: 6 | AI9: 2 | AJ9: 7 | AK9: 2
A10: 2 | B10: 宁海路 | C10: =D10+E10+F10+G10+H10+I10+J10+K10+L10 -> 142 | D10: 2 | E10: 1 | F10: 3 | G10: 0 | H10: 0 | I10: 88 | J10: 16 | K10: 0 | L10: 32 | M10: 40 | N10: =O10+P10+Q10+R10+S10+T10+U10+V10 -> 102 | O10: 0 | P10: 0 | Q10: 31 | R10: 1 | S10: 1 | T10: 3 | U10: 1 | V10: 65 | W10: 70 | X10: 1 | Y10: 10 | Z10: 7 | AA10: 4 | AB10: 9 | AC10: 4 | AD10: 17 | AE10: 0 | AF10: 17 | AG10: =AH10+AI10+AJ10 -> 19 | AH10: 6 | AI10: 1 | AJ10: 12 | AK10: 0
A11: 3 | B11: 湖南路 | C11: =D11+E11+F11+G11+H11+I11+J11+K11+L11 -> 150 | D11: 0 | E11: 0 | F11: 8 | G11: 0 | H11: 0 | I11: 87 | J11: 16 | K11: 0 | L11: 39 | M11: 37 | N11: 70 | O11: 0 | P11: 0 | Q11: 36 | R11: 0 | S11: 24 | T11: 9 | U11: 0 | V11: 1 | W11: 63 | X11: 1 | Y11: 20 | Z11: 12 | AA11: 4 | AB11: 13 | AC11: 3 | AD11: 16 | AE11: 0 | AF11: 16 | AG11: 21 | AH11: 8 | AI11: 2 | AJ11: 11 | AK11: 3
A12: 4 | B12: 中央门 | C12: 405 | D12: 2 | E12: 2 | F12: 15 | G12: 0 | H12: 2 | I12: 228 | J12: 43 | K12: 0 | L12: 113 | M12: 55 | N12: 231 | O12: 10 | P12: 19 | Q12: 93 | R12: 26 | S12: 14 | T12: 37 | U12: 21 | V12: 11 | W12: 191 | X12: 2 | Y12: 30 | Z12: 38 | AA12: 7 | AB12: 34 | AC12: 11 | AD12: 34 | AE12: 0 | AF12: 34 | AG12: 22 | AH12: 7 | AI12: 4 | AJ12: 11 | AK12: 5
A13: 5 | B13: 挹江门 | C13: =SUM(D13:L13) -> 241 | D13: 0 | E13: 0 | F13: 6 | G13: 0 | H13: 12 | I13: =141-3 -> 138 | J13: 38 | K13: 0 | L13: 47 | M13: 59 | N13: =SUM(O13:V13) -> 91 | O13: 1 | P13: 0 | Q13: 62 | R13: 1 | S13: 11 | T13: 16 | U13: 0 | V13: 0 | W13: 105 | X13: 1 | Y13: 34 | Z13: 25 | AA13: 1 | AB13: 19 | AC13: 4 | AD13: 24 | AE13: 0 | AF13: 24 | AG13: 27 | AH13: 13 | AI13: 3 | AJ13: 11 | AK13: 5
A14: 6 | B14: 江东 | C14: 102 | D14: 0 | E14: 1 | F14: 5 | G14: 1 | H14: 0 | I14: 62 | J14: 16 | K14: 0 | L14: 17 | M14: 22 | N14: 40 | O14: 4 | P14: 0 | Q14: 17 | R14: 2 | S14: 3 | T14: 14 | U14: 0 | V14: 0 | W14: 43 | X14: 1 | Y14: 13 | Z14: 7 | AA14: 2 | AB14: 13 | AC14: 6 | AD14: 6 | AE14: 0 | AF14: 6 | AG14: 5 | AH14: 1 | AI14: 1 | AJ14: 3 | AK14: 2
A15: 7 | B15: 凤凰 | C15: 262 | D15: 1 | E15: 1 | F15: 0 | G15: 0 | H15: 4 | I15: 153 | J15: 38 | K15: 0 | L15: 65 | M15: 54 | N15: 103 | O15: 0 | P15: 0 | Q15: 68 | R15: 3 | S15: 7 | T15: 25 | U15: 0 | V15: 0 | W15: 128 | X15: 1 | Y15: 15 | Z15: 25 | AA15: 8 | AB15: 16 | AC15: 12 | AD15: 22 | AE15: 0 | AF15: 22 | AG15: 12 | AH15: 3 | AI15: 2 | AJ15: 7 | AK15: 5
A16: 8 | B16: 热南 | C16: 230 | D16: 0 | E16: 1 | F16: 7 | G16: 0 | H16: 0 | I16: 128 | J16: 31 | K16: 0 | L16: 63 | M16: 28 | N16: 100 | O16: 19 | P16: 0 | Q16: 55 | R16: 1 | S16: 4 | T16: 21 | U16: 0 | V16: 0 | W16: 117 | X16: 0 | Y16: 14 | Z16: 20 | AA16: 2 | AB16: 14 | AC16: 6 | AD16: 11 | AE16: 0 | AF16: 11 | AG16: 19 | AH16: 7 | AI16: 2 | AJ16: 10 | AK16: 5
A17: 9 | B17: 下关 | C17: =D17+E17+F17+G17++H17+I17+J17+K17+L17 -> 386 | D17: 4 | E17: 2 | F17: 10 | G17: 0 | H17: 0 | I17: 211 | J17: 36 | K17: 0 | L17: 123 | M17: 56 | N17: =O17+P17+Q17+R17+S17+T17+U17+V17 -> 155 | O17: 39 | P17: 9 | Q17: 52 | R17: 11 | S17: 9 | T17: 25 | U17: 7 | V17: 3 | W17: 186 | X17: 0 | Y17: 17 | Z17: 28 | AA17: 4 | AB17: 36 | AC17: 6 | AD17: 38 | AE17: 0 | AF17: 38 | AG17: 21 | AH17: 8 | AI17: 6 | AJ17: 7 | AK17: 3
A18: 10 | B18: 建宁路 | C18: 219 | D18: 0 | E18: 1 | F18: 4 | G18: 0 | H18: 0 | I18: 151 | J18: 21 | K18: 0 | L18: 42 | M18: 48 | N18: 103 | O18: 0 | P18: 12 | Q18: 61 | R18: 6 | S18: 13 | T18: 6 | U18: 5 | V18: 0 | W18: 97 | X18: 0 | Y18: 24 | Z18: 14 | AA18: 3 | AB18: 11 | AC18: 6 | AD18: 35 | AE18: 0 | AF18: 35 | AG18: 11 | AH18: 5 | AI18: 1 | AJ18: 5 | AK18: 4
A19: 11 | B19: 小市 | C19: 323 | D19: 4 | E19: 1 | F19: 13 | G19: 1 | H19: 0 | I19: 195 | J19: 47 | K19: 1 | L19: 61 | M19: 102 | N19: 94 | O19: 5 | P19: 0 | Q19: 50 | R19: 8 | S19: 7 | T19: 17 | U19: 7 | V19: 0 | W19: 114 | X19: 0 | Y19: 34 | Z19: 33 | AA19: 6 | AB19: 31 | AC19: 13 | AD19: 25 | AE19: 1 | AF19: 24 | AG19: 46 | AH19: 18 | AI19: 4 | AJ19: 24 | AK19: 8
A20: 12 | B20: 宝塔桥 | C20: 701 | D20: 6 | E20: 2 | F20: 28 | G20: 0 | H20: 0 | I20: 377 | J20: 95 | K20: 0 | L20: 193 | M20: 110 | N20: 267 | O20: 70 | P20: 17 | Q20: 60 | R20: 33 | S20: 28 | T20: 49 | U20: 10 | V20: 0 | W20: 296 | X20: 10 | Y20: 92 | Z20: 68 | AA20: 8 | AB20: 43 | AC20: 13 | AD20: 71 | AE20: 0 | AF20: 71 | AG20: 64 | AH20: 19 | AI20: 11 | AJ20: 34 | AK20: 9
A21: 13 | B21: 幕府山 | C21: =SUM(D21:L21) -> 260 | D21: 2 | E21: 0 | F21: 13 | G21: 1 | H21: 10 | I21: 133 | J21: 30 | K21: 2 | L21: 69 | M21: 57 | N21: =SUM(O21:V21) -> 108 | O21: 8 | P21: 5 | Q21: 35 | R21: 10 | S21: 15 | T21: 31 | U21: 3 | V21: 1 | W21: 111 | X21: 0 | Y21: 28 | Z21: 23 | AA21: 11 | AB21: 20 | AC21: 4 | AD21: =AE21+AF21 -> 32 | AE21: 2 | AF21: 30 | AG21: =SUM(AH21:AJ21) -> 27 | AH21: 10 | AI21: 6 | AJ21: 11 | AK21: 3
A22: 合计 | C22: =SUM(C9:C21) -> 3583 | D22: =SUM(D9:D21) -> 24 | E22: 12 | F22: 116 | G22: 3 | H22: 33 | I22: 2036 | J22: 450 | K22: 3 | L22: 906 | M22: 707 | N22: 1515 | O22: 158 | P22: 64 | Q22: 652 | R22: 103 | S22: =SUM(S9:S21) -> 136 | T22: 264 | U22: 54 | V22: 84 | W22: 1590 | X22: 18 | Y22: 349 | Z22: 312 | AA22: 63 | AB22: 276 | AC22: 90 | AD22: 341 | AE22: 3 | AF22: 338 | AG22: =SUM(AG9:AG21) -> 309 | AH22: 111 | AI22: 45 | AJ22: 153 | AK22: =SUM(AK9:AK21) -> 54
A23: 填表人： 填表时间：2026.3 签批人：
